Cogmind - Beta 14 @@@ ROGUE MODE // 2025.03.14 @ 16:23:18 Player: IA-Sg3M Result: Destroyed by P-70 Sage with Tesla Rifle Performance ------------- Evolutions (5) 2500 Regions Visited (18) 3600 Robots Destroyed (105) 525 Value Destroyed (4220) 4220 Prototype IDs (32) 640 Alien Tech Used (0) 0 Bonus (3421) 3421 TOTAL SCORE: 14906 Bonus ------- High Alert Combat Kills 341 Follower Combat Kills 1397 Entered Garrisons 400 Used RIF Installer 1500 Aligned with FarCom 300 Friendly Fire -517 Cogmind --------- Core Integrity 0/1000 Matter 107/300 Energy 129/150 System Corruption 14% Temperature Warm (178) Movement Core (250) Ox4 Location -5/Factory Parts ------- > --- POWER (1) -------- Micro Fission Core > --- PROPULSION (6) --- (None) > --- UTILITY (8) ------ Advanced Targeting Computer Improved Transmission Jammer ECM Suite Relay Coupler [Swarmer] (38) > --- WEAPON (2) ------- Plasma Cannon > --- INVENTORY (5) ---- Advanced Terrain Scanner Peak State ------------ > --- POWER ------------ Light Fission Core > --- PROPULSION ------- Cooled Cesium-ion Thruster Cooled Cesium-ion Thruster Cooled Cesium-ion Thruster Cooled Cesium-ion Thruster Biomechanical Wings Biomechanical Wings > --- UTILITY ---------- Lightpack 2.0 Hacking Suite Relay Coupler [Sentry] System Guard > --- WEAPON ----------- Remote Datajack Power Maul > --- INVENTORY -------- Angular Momentum Engine Light Fission Core Light Fission Core Improved VTOL Module Improved VTOL Module Advanced Heat Sink Large Storage Unit Machine Analyzer Improved Terrain Scanner Advanced Terrain Scanner Advanced Terrain Scan Processor Launcher Loader Phase Shifter Cloaking Device Improved Medium Armor Plating Hacking Suite Authchip [R/Combat] Relay Coupler [NC] Relay Coupler [Swarmer] Relay Coupler [Swarmer] Relay Coupler [Grunt] Relay Coupler [Brawler] Relay Coupler [Sentry] Relay Coupler [Specialist] Drone Bay Compact Ion Cannon Compact Ion Cannon Compact Ion Cannon High-powered Shotgun Heavy Rocket Launcher Long-range Missile Launcher Remote Datajack Remote Datajack Power Maul Scythe Armageddon Trap Armageddon Trap Tesla Bomb Trap Tesla Bomb Trap [Rating: 106] Favorites ----------- Power Light Fission Core Engine Light Ion Engine Power Core Light Fission Core Propulsion Cooled Cesium-ion Thruster Flight Unit Cooled Cesium-ion Thruster Utility Lightpack 2.0 Device Sensor Array Storage Lightpack 2.0 Processor System Guard Hackware Hacking Suite Protection Improved Light Armor Plating Weapon Remote Datajack Energy Gun Small Laser Energy Cannon Compact Ion Cannon Ballistic Gun Assault Rifle Ballistic Cannon Advanced Assault Cannon Launcher Long-range Missile Launcher Special Weapon Remote Datajack Impact Weapon Power Maul Slashing Weapon Scythe Piercing Weapon Heavy Pick Special Melee Weapon Improved Datajack Build | -11 -10 -9 -9 -9 -8 -8 -8 -8 -8 -6 -6 -6 -6 -6 -6 -5 -5 -5 ------- Run | Yrd Mat Mat Min Exi Min Mat Sto Gar Rec Fac Was Fac Gar Fac Ext Fac Was Fac Slots Evolved 10 | . . 2 . . . 2 . . . 4 . . . . . 2 . . Power . | . . . . . . . . . . . . . . . . . . . Propulsion 4 | . . 1 . . . 1 . . . 2 . . . . . . . . Utility 6 | . . 1 . . . 1 . . . 2 . . . . . 2 . . Weapon . | . . . . . . . . . . . . . . . . . . . Parts Attached 173 | 2 14 19 1 2 . 2 2 17 . 7 . 21 20 16 17 26 1 6 Power 15 | . 1 2 . . . . 1 1 . 2 . 4 1 . 1 1 . 1 Engine 10 | . 1 2 . . . . 1 1 . 1 . 2 . . 1 1 . . Core 5 | . . . . . . . . . . 1 . 2 1 . . . . 1 Reactor . | . . . . . . . . . . . . . . . . . . . Propulsion 34 | . 2 5 . . . . 1 2 . . . 7 2 6 1 8 . . Treads . | . . . . . . . . . . . . . . . . . . . Leg . | . . . . . . . . . . . . . . . . . . . Wheel . | . . . . . . . . . . . . . . . . . . . Hover . | . . . . . . . . . . . . . . . . . . . Flight 34 | . 2 5 . . . . 1 2 . . . 7 2 6 1 8 . . Utility 41 | . 4 3 . 2 . 1 . 2 . 3 . 1 3 5 3 11 . 3 Device 16 | . 3 2 . . . 1 . 1 . . . . 1 . . 6 . 2 Storage 2 | . . . . 2 . . . . . . . . . . . . . . Processor 5 | . 1 . . . . . . 1 . 1 . . . . . 2 . . Hackware 16 | . . . . . . . . . . 2 . 1 2 5 2 3 . 1 Protection 2 | . . 1 . . . . . . . . . . . . 1 . . . Artifact . | . . . . . . . . . . . . . . . . . . . Weapon 83 | 2 7 9 1 . . 1 . 12 . 2 . 9 14 5 12 6 1 2 Energy Gun 4 | 1 . . . . . . . . . . . 1 . . 1 1 . . Energy Cannon 10 | . . 1 . . . . . 3 . . . . . 1 3 . . 2 Ballistic Gun 11 | 1 5 3 . . . . . . . . . . 1 . . 1 . . Ballistic Cannon 3 | . . . . . . . . . . . . 2 1 . . . . . Launcher 21 | . 2 3 1 . . . . 6 . . . . 6 . 3 . . . Special Weapon 10 | . . . . . . . . 1 . . . 1 1 3 3 1 . . Impact Weapon 14 | . . 2 . . . 1 . 1 . . . 1 4 . 2 3 . . Slashing Weapon 7 | . . . . . . . . 1 . 1 . 4 . . . . 1 . Piercing Weapon 1 | . . . . . . . . . . 1 . . . . . . . . Special Melee Weapon 2 | . . . . . . . . . . . . . 1 1 . . . . Unidentified Prototypes 9 | . . 1 . . . . . . . . . 2 . 2 2 1 1 . Corrupted Parts 1 | . . . . . . . . 1 . . . . . . . . . . System Corruption 7 | . . . . . . . . 7 . . . . . . . . . . Parts Lost 34 | . . . . . . . . 2 . . . 5 2 1 6 17 1 . Power 4 | . . . . . . . . . . . . 1 1 . 1 1 . . Propulsion 10 | . . . . . . . . 1 . . . 4 . 1 3 1 . . Utility 12 | . . . . . . . . . . . . . . . 2 9 1 . Weapon 7 | . . . . . . . . 1 . . . . 1 . . 5 . . Highest Loss Streak 17 | . . . . . . . . 1 . . . 4 2 1 3 17 1 . To Critical Strikes 1 | . . . . . . . . . . . . . . . . 1 . . Average Slot Usage (%) 73 | . 73 84 100 88 . 65 67 70 81 70 73 75 85 85 79 60 14 20 Engine 4 | . 8 11 11 11 . 9 9 8 9 6 6 4 3 . 1 3 . . Core 2 | . . . . . . . . . . . . 1 2 6 4 . . 2 Flight 29 | . 17 27 33 33 . 27 31 35 36 26 26 32 40 39 35 19 . . Device 3 | . 8 17 22 11 . 2 . . . . . . 2 . . 4 4 5 Storage 4 | . . . . 6 . 9 9 9 9 6 6 6 6 6 6 4 . . Processor 4 | . 11 11 11 4 . . . . 9 4 6 6 6 5 . 4 5 5 Hackware 9 | . . . . . . . . . . 13 13 13 9 13 16 13 4 2 Energy Cannon 1 | . . . . . . . . 2 9 3 . . . . 2 . . 2 Ballistic Gun 1 | . 25 2 . . . . . . . . . . . . . . . . Launcher 1 | . . 1 9 11 . 4 . 3 . . . . 3 . 2 . . . Special Weapon 2 | . . . . . . . . 2 . . . . 4 5 4 2 . . Impact Weapon 3 | . . 12 12 11 . 13 18 8 . . . 1 1 6 2 1 . . Slashing Weapon 1 | . . . . . . . . . 9 7 6 5 . . . . . . Peak Build Rating 106 | 2 9 18 18 43 43 45 49 54 57 69 69 91 92 106 105 100 23 23 Average Rating 65 | 1 5 10 17 27 43 43 46 49 55 63 69 79 90 100 96 74 12 13 On Entrance 44 | . 2 7 18 17 43 43 44 49 54 57 69 69 88 90 102 79 14 5 Naked Turns 35 | . . . . . . . . . . . . . . . . 35 . . Heaviest Build 32 | 2 8 12 12 21 14 16 16 17 14 14 14 20 32 18 30 26 1 15 Greatest Support 46 | 3 8 15 15 15 15 15 19 19 16 16 16 29 29 46 35 34 3 3 Greatest Overweight (x) 5 | . 1 . . 1 . 1 . . . . . 5 1 . 1 1 . 4 Average Overweight (x) . | . . . . . . . . . . . . . . . . . . . Largest Inventory Capacity 40 | 5 5 5 5 40 40 40 40 40 40 40 40 40 40 40 40 40 5 5 Average Capacity 31 | 5 5 5 5 18 40 40 40 40 40 40 40 40 40 40 40 33 5 5 Most Carried 40 | . 5 5 5 10 5 5 10 37 40 40 40 40 40 40 40 40 5 5 Average Carried 28 | . 4 4 5 5 5 4 7 20 36 39 40 39 37 38 38 32 5 3 Final Capacity 40 | 5 5 5 5 40 40 40 40 40 40 40 40 40 40 40 40 5 5 5 Final Carried 40 | . 5 5 5 5 5 5 10 34 40 40 40 36 40 40 40 5 5 1 Class Distribution -------------------- 32% | Hauler-Sprinter 23% | Bothacker-Sprinter 14% | Mutant 10% | Commander-Sprinter 8% | Scavenger-Mutant 6% | Hauler-Mutant Dominant Class ---------------- Scavenger-Mutant | -10/Materials Scavenger-Mutant | -9/Materials Mutant | -9/Mines Hauler-Mutant | -9/Exiles Hauler-Mutant | -8/Mines Hauler-Mutant | -8/Materials Hauler-Mutant | -8/Storage Hauler-Sprinter | -8/Garrison Hauler-Sprinter | -8/Recycling Hauler-Sprinter | -6/Factory Hauler-Sprinter | -6/Waste Hauler-Sprinter | -6/Factory Hauler-Sprinter | -6/Garrison Bothacker-Sprinter | -6/Factory Commander-Sprinter | -6/Extension Hauler-Sprinter | -5/Factory Mutant | -5/Waste Mutant | -5/Factory Resources | -11 -10 -9 -9 -9 -8 -8 -8 -8 -8 -6 -6 -6 -6 -6 -6 -5 -5 -5 ----------- Run | Yrd Mat Mat Min Exi Min Mat Sto Gar Rec Fac Was Fac Gar Fac Ext Fac Was Fac Matter Collected 3201 | 186 373 252 . . . 49 45 286 93 40 . 219 550 259 625 224 . . Remotely . | . . . . . . . . . . . . . . . . . . . Salvage Created 3886 | . 436 371 . . . 97 28 366 223 17 . 361 450 705 405 405 . 22 Parts 164 | . 35 14 . . . 3 1 19 8 1 . 20 15 10 23 14 . 1 Haulers Intercepted 8 | . 1 1 . . . . . . . . . 1 . 5 . . . . Recyclers Shooed 1 | . . . . . . . . . . . . . . 1 . . . . Parts Field Recycled . | . . . . . . . . . . . . . . . . . . . Retrieved Matter . | . . . . . . . . . . . . . . . . . . . Parts Self-Destructed . | . . . . . . . . . . . . . . . . . . . Prevented . | . . . . . . . . . . . . . . . . . . . Kills | -11 -10 -9 -9 -9 -8 -8 -8 -8 -8 -6 -6 -6 -6 -6 -6 -5 -5 -5 ------- Run | Yrd Mat Mat Min Exi Min Mat Sto Gar Rec Fac Was Fac Gar Fac Ext Fac Was Fac Combat Hostiles Destroyed 56 | . 10 8 . . . 2 . 12 1 . . 5 10 . 5 2 . 1 Melee 8 | . . 1 . . . 1 . 2 . . . 3 . . . 1 . . Guns 9 | . 8 . . . . . . . . . . . . . . 1 . . Cannons 8 | . . 1 . . . . . 1 1 . . 2 1 . 1 . . 1 AOE 26 | . 2 3 . . . . . 9 . . . . 9 . 3 . . . Classes Destroyed 13 | . 6 2 . . . . . 2 . . . 1 1 . 1 . . . Worker 6 | . 1 1 . . . . . . . . . 1 . 1 2 . . . Builder 4 | . . . . . . . . . . . . . . . 4 . . . Hauler 8 | . 1 1 . . . . . . . . . 1 . 5 . . . . Recycler 7 | . . 1 . . . . . . 2 . . . . 1 1 2 . . Operator 4 | . 1 1 . . . . . . . 1 . 1 . . . . . . Watcher 17 | . 3 2 . . . . 1 . . . . 2 . 6 2 1 . . Swarmer 13 | . 3 3 . . . . . 3 . . . 3 . . . . . 1 Cutter 3 | . . . . . . . . 3 . . . . . . . . . . Grunt 25 | . 7 3 . . . . . 3 . . . . 9 . 2 1 . . Duelist 5 | . . . . . . . . 2 . . . . 2 . 1 . . . Sentry 8 | . . 2 . . . 2 . 1 1 . . . 1 . 1 . . . Programmer 3 | . . . . . . . . . . . . 2 . . . 1 . . Behemoth 2 | . . . . . . . . . . . . . 1 . 1 . . . Best Kill Streak 8 | . 6 5 . . . 2 1 3 2 1 . 3 7 4 8 2 . 1 Combat Bots Only 7 | . 3 3 . . . 2 . 3 1 . . 3 7 . 3 1 . 1 Max Kills in Single Turn 3 | . 1 3 . . . 1 1 2 1 1 . 1 3 1 3 1 . 1 Gunslinging . | . . . . . . . . . . . . . . . . . . . Exploded 2 | . 1 2 . . . . . 2 . . . . 2 . 2 . . . Melee 1 | . . 1 . . . 1 . 1 . . . 1 . . . 1 . . Uniques/NPCs Destroyed . | . . . . . . . . . . . . . . . . . . . Combat | -11 -10 -9 -9 -9 -8 -8 -8 -8 -8 -6 -6 -6 -6 -6 -6 -5 -5 -5 -------- Run | Yrd Mat Mat Min Exi Min Mat Sto Gar Rec Fac Was Fac Gar Fac Ext Fac Was Fac Hostile Shots Fired 380 | . 35 30 . . . 15 4 24 . . . 37 32 16 104 72 2 9 Missed 156 | . 8 13 . . . 8 . 8 . . . 8 22 7 56 22 1 3 Damage Taken 4012 | . 304 214 . . . 104 30 416 . . . 515 343 193 604 1133 56 100 Core 1725 | . 95 107 . . . 47 . 139 . . . 155 27 60 95 864 56 80 Absorbed by Shields . | . . . . . . . . . . . . . . . . . . . Regen/Repaired (Parts) 30 | . . . . . . . . . . . . 17 . . . 13 . . Core Remaining (%) 72 | 100 62 . . . 73 . . . 66 . . . . . 60 . . . Volleys Fired 220 | . 51 12 . . . . . 37 . . . 6 24 19 56 10 . 5 Largest 2 | . 2 1 . . . . . 1 . . . 2 2 1 2 2 . 1 Hottest 180 | . 60 56 . . . . . 100 . . . 133 86 5 180 95 . 80 Shots Fired 287 | . 98 12 . . . . . 37 1 . . 8 26 19 66 15 . 5 Gun 115 | . 95 6 . . . . . . . . . 2 1 . . 11 . . Cannon 37 | . . 2 . . . . . 11 1 . . 4 1 . 13 . . 5 Launcher 63 | . 3 4 . . . . . 21 . . . . 20 . 15 . . . Special 72 | . . . . . . . . 5 . . . 2 4 19 38 4 . . Kinetic 101 | . 83 6 . . . . . . . . . 4 2 . . 6 . . Thermal 42 | . 12 . . . . . . 5 . . . 2 . . 13 5 . 5 Explosive 63 | . 3 4 . . . . . 21 . . . . 20 . 15 . . . Electromagnetic 14 | . . 2 . . . . . 11 1 . . . . . . . . . Robot Hit Streak 10 | . 6 3 . . . . . 6 2 . . 10 7 8 8 9 . 4 Robot Miss Streak 7 | . 4 4 . . . . . 4 . . . . 3 2 7 3 . 1 Penetration Max . | . . . . . . . . . . . . . . . . . . . Secondary Targets . | . . . . . . . . . . . . . . . . . . . Shots Hit Robots 236 | . 53 22 . . . 7 2 23 3 1 . 18 14 30 45 16 . 2 Core Hits 137 | . 28 10 . . . 1 . 24 2 . . 7 26 2 28 8 . 1 Critical Kills 2 | . . . . . . 1 . . . . . . . 1 . . . . Critical Parts Destroyed 15 | . . 4 . . . 1 . 2 . . . 1 . 5 1 1 . . Critical Strikes 21 | . . 5 . . . 3 . 2 . . . 3 . 6 1 1 . . Burn 1 | . . . . . . . . . . . . 1 . . . . . . Smash 19 | . . 5 . . . 3 . 2 . . . 1 . 6 1 1 . . Impale 1 | . . . . . . . . . . . . 1 . . . . . . Melee Attacks 147 | . . 19 . . . 8 4 17 2 2 . 27 15 35 11 7 . . Impact 112 | . . 19 . . . 8 4 15 . . . 4 9 35 11 7 . . Slashing 18 | . . . . . . . . 2 2 2 . 12 . . . . . . Piercing 11 | . . . . . . . . . . . . 11 . . . . . . Sneak Attacks 26 | . . 2 . . . 2 . . 2 . . 3 6 7 1 3 . . Combat Hostiles 5 | . . 1 . . . 2 . . . . . . . . 1 1 . . Follow-up Attacks 8 | . . 4 . . . 3 . . . . . 1 . . . . . . Damage Inflicted 10415 | . 741 1197 . . . 300 92 1528 152 45 . 767 1480 1481 1813 766 . 53 Guns 893 | . 601 26 . . . . . . . . . 44 . . . 222 . . Cannons 508 | . . 42 . . . . . 106 20 . . 127 25 . 135 . . 53 Explosions 4437 | . 140 405 . . . . . 858 . . . . 1455 . 1455 124 . . Melee 4571 | . . 724 . . . 300 92 564 132 45 . 596 . 1481 223 414 . . Ramming 6 | . . . . . . . . . . . . . . . . 6 . . Kinetic 782 | . 514 26 . . . . . . . . . 127 25 . . 90 . . Thermal 451 | . 87 . . . . . . . . . . 44 . . 135 132 . 53 Explosive 4437 | . 140 405 . . . . . 858 . . . . 1455 . 1455 124 . . Electromagnetic 168 | . . 42 . . . . . 106 20 . . . . . . . . . Impact 4063 | . . 724 . . . 300 92 564 . . . 265 . 1481 223 414 . . Slashing 390 | . . . . . . . . . 132 45 . 213 . . . . . . Piercing 118 | . . . . . . . . . . . . 118 . . . . . . Highest Corruption 14 | . . . . . . . . 7 7 . . . . 12 12 6 14 14 Average Corruption 11 | . . . . . . . . 7 7 . . . . 7 12 5 11 14 Corruption Purged . | . . . . . . . . . . . . . . . . . . . Corruption Blocked . | . . . . . . . . . . . . . . . . . . . Effects 70 | . . . . . . . . . 4 . . . . 6 38 2 1 19 Message Errors 12 | . . . . . . . . . . . . . . 3 8 . . 1 Matter Fused 18 | . . . . . . . . . 1 . . . . 1 8 . 1 7 Heat Flow Errors 10 | . . . . . . . . . 1 . . . . . 4 2 . 3 Energy Discharges 9 | . . . . . . . . . . . . . . 1 7 . . 1 Parts Fused 1 | . . . . . . . . . . . . . . . 1 . . . Data Loss (minor) 11 | . . . . . . . . . . . . . . . 5 . . 6 Data Loss (major) 4 | . . . . . . . . . . . . . . . 3 . . 1 Misfires 1 | . . . . . . . . . 1 . . . . . . . . . Alerts 1 | . . . . . . . . . 1 . . . . . . . . . Misdirections 2 | . . . . . . . . . . . . . . 1 1 . . . Weapon Failures 1 | . . . . . . . . . . . . . . . 1 . . . Overload Shots . | . . . . . . . . . . . . . . . . . . . Overflow Damage 2029 | . . 245 . . . 61 42 245 42 15 . 313 40 703 183 140 . . Projectiles . | . . . . . . . . . . . . . . . . . . . Explosions 151 | . . 30 . . . . . 49 . . . . 40 . 32 . . . Melee 1878 | . . 215 . . . 61 42 196 42 15 . 313 . 703 151 140 . . Knockbacks 16 | . . 4 . . . . 1 3 . . . 2 . 4 . 2 . . Impact 15 | . . 4 . . . . 1 3 . . . 1 . 4 . 2 . . Kinetic 1 | . . . . . . . . . . . . 1 . . . . . . Secondary . | . . . . . . . . . . . . . . . . . . . Self-Inflicted Damage 338 | . . . . . . . . 134 . . . . 74 . 25 105 . . Shots 8 | . . . . . . . . 4 . . . . 2 . 1 1 . . Rammed 1 | . . . . . . . . . . . . . . . . 1 . . Targets Rammed 1 | . . . . . . . . . . . . . . . . 1 . . Kicked . | . . . . . . . . . . . . . . . . . . . Crushed . | . . . . . . . . . . . . . . . . . . . Highest Temperature 295 | . 32 28 . . . . . 92 232 . . 235 100 143 295 167 . 246 Average Temperature 47 | . 8 15 . . . . . 27 115 . . 47 26 37 89 68 . 91 Received Heat Transfer 588 | . 141 63 . . . 36 . 45 . . . . 27 66 138 72 . . Effects 1 | . . . . . . . . . 1 . . . . . . . . . Interference 1 | . . . . . . . . . 1 . . . . . . . . . Siege Activations . | . . . . . . . . . . . . . . . . . . . Robots Corrupted 22 | . . 5 . . . 1 . 2 . . . 2 . 8 3 1 . . Combat Hostiles 5 | . . 3 . . . 1 . . . . . . . . 1 . . . Parts Fried 29 | . . 5 . . . 2 1 1 . . . 1 . 13 3 3 . . Impact Corruptions 55 | . . 10 . . . 3 1 7 . . . 4 . 23 4 3 . . Robots Melted . | . . . . . . . . . . . . . . . . . . . Combat Hostiles . | . . . . . . . . . . . . . . . . . . . Parts Melted 4 | . . . . . . . . . . . . 1 . . . 3 . . Heat Transferred 935 | . 200 . . . . . . . . . . 200 . . 185 250 . 100 Parts Sabotaged . | . . . . . . . . . . . . . . . . . . . Parts Stolen . | . . . . . . . . . . . . . . . . . . . Parts Stripped . | . . . . . . . . . . . . . . . . . . . Power Chain Reactions . | . . . . . . . . . . . . . . . . . . . Alert | -11 -10 -9 -9 -9 -8 -8 -8 -8 -8 -6 -6 -6 -6 -6 -6 -5 -5 -5 ------- Run | Yrd Mat Mat Min Exi Min Mat Sto Gar Rec Fac Was Fac Gar Fac Ext Fac Was Fac Peak Influence 991 | . 365 580 252 . . 90 74 588 320 210 88 172 929 790 991 691 192 222 Initial 487 | . . 154 231 . . . 37 48 264 184 73 61 94 487 387 485 192 113 Average 391 | . 213 322 241 . . 32 53 353 289 195 80 87 449 629 680 518 186 156 Maximum Alert Level 3 | . 1 2 1 . . . . 2 1 1 . . 3 3 3 2 . 1 Low Security (%) 30 | 100 40 39 . . 100 100 100 16 . 48 100 100 14 . . . 100 57 Level 1 21 | . 59 21 100 . . . . 41 100 51 . . 42 . 1 . . 42 Level 2 37 | . . 39 . . . . . 41 . . . . 18 89 58 100 . . Level 3 11 | . . . . . . . . . . . . . 24 10 40 . . . Level 4 . | . . . . . . . . . . . . . . . . . . . Level 5 . | . . . . . . . . . . . . . . . . . . . High Security . | . . . . . . . . . . . . . . . . . . . Max Security . | . . . . . . . . . . . . . . . . . . . Squads Dispatched 17 | . 1 3 . . . . . . . 1 . 1 . 3 4 3 . 1 Investigation 5 | . . 1 . . . . . . . 1 . . . . 1 2 . . Extermination 3 | . . . . . . . . . . . . 1 . . . 1 . 1 Reinforcement 7 | . 1 2 . . . . . . . . . . . 3 1 . . . Assault 2 | . . . . . . . . . . . . . . . 2 . . . Garrison . | . . . . . . . . . . . . . . . . . . . Intercept . | . . . . . . . . . . . . . . . . . . . Searches Triggered . | . . . . . . . . . . . . . . . . . . . Construction Impeded 2 | . . . . . . . . . . . . . . 1 1 . . . Haulers Reinforced 2 | . . . . . . . . . . . . . . 2 . . . . Active Scanning Responses . | . . . . . . . . . . . . . . . . . . . Cargo Convoy Interrupts . | . . . . . . . . . . . . . . . . . . . Stealth | -11 -10 -9 -9 -9 -8 -8 -8 -8 -8 -6 -6 -6 -6 -6 -6 -5 -5 -5 --------- Run | Yrd Mat Mat Min Exi Min Mat Sto Gar Rec Fac Was Fac Gar Fac Ext Fac Was Fac Distress Signals 6 | . 1 1 . . . . 1 . . . . . . 2 1 . . . Communications Jammed . | . . . . . . . . . . . . . . . . . . . Distress Signals . | . . . . . . . . . . . . . . . . . . . Times Spotted 173 | . 15 15 . . . 3 4 14 . 1 4 11 19 23 33 22 6 3 Peak Tracking Total 10 | . 3 6 . . . 2 4 3 . . 4 4 5 3 7 10 6 5 Tactical Retreats 10 | . . 3 . . . . . 2 . . . 1 . 1 1 1 . 1 Traps | -11 -10 -9 -9 -9 -8 -8 -8 -8 -8 -6 -6 -6 -6 -6 -6 -5 -5 -5 ------- Run | Yrd Mat Mat Min Exi Min Mat Sto Gar Rec Fac Was Fac Gar Fac Ext Fac Was Fac Traps Triggered 18 | . . 1 . . . . . 2 . 1 . 2 3 . 2 7 . . Indirectly . | . . . . . . . . . . . . . . . . . . . Trap Hack Attempts 5 | . . . . . . . . . . . . . . 5 . . . . Triggered . | . . . . . . . . . . . . . . . . . . . Disarmed 1 | . . . . . . . . . . . . . . 1 . . . . Reprogrammed . | . . . . . . . . . . . . . . . . . . . Reused 1 | . . . . . . . . . . . . . 1 . . . . . Traps Extracted . | . . . . . . . . . . . . . . . . . . . Installed 3 | . . . . . . . . . . . . . 1 . . 2 . . Triggered 1 | . . . . . . . . . . . . . 1 . . . . . Most Traps Carried 12 | . . . . . . . . 12 11 9 9 9 8 5 4 5 . . Machines | -11 -10 -9 -9 -9 -8 -8 -8 -8 -8 -6 -6 -6 -6 -6 -6 -5 -5 -5 ---------- Run | Yrd Mat Mat Min Exi Min Mat Sto Gar Rec Fac Was Fac Gar Fac Ext Fac Was Fac Machines Disabled 29 | . 1 2 . . . . 1 6 . . . . 9 3 4 3 . . Max in Single Turn 2 | . 1 2 . . . . 1 1 . . . . 2 . 2 2 . . Garrison Access 5 | . . . . . . . . . . . . 1 . 3 . . . 1 Garrison Relay 6 | . . . . . . . . 2 . . . . 4 . . . . . Machines Repaired . | . . . . . . . . . . . . . . . . . . . Machines Dismantled . | . . . . . . . . . . . . . . . . . . . Machines Sabotaged . | . . . . . . . . . . . . . . . . . . . Overloaded Fab Kills . | . . . . . . . . . . . . . . . . . . . Hacking | -11 -10 -9 -9 -9 -8 -8 -8 -8 -8 -6 -6 -6 -6 -6 -6 -5 -5 -5 --------- Run | Yrd Mat Mat Min Exi Min Mat Sto Gar Rec Fac Was Fac Gar Fac Ext Fac Was Fac Machines Accessed 53 | . 1 2 . 1 . . 1 1 5 3 . 8 1 11 8 8 . 3 Terminals 38 | . 1 2 . . . . . 1 5 2 . 4 1 5 8 7 . 2 Fabricators 4 | . . . . . . . . . . 1 . 1 . 2 . . . . Repair Stations 2 | . . . . . . . . . . . . 1 . . . 1 . . Recycling Units . | . . . . . . . . . . . . . . . . . . . Scanalyzers 1 | . . . . . . . . . . . . . . 1 . . . . Garrison Access 7 | . . . . . . . 1 . . . . 2 . 3 . . . 1 Total Hacks 113 | . 1 4 . 1 . . 1 3 12 6 . 18 1 23 17 20 . 6 Successful 55 | . 1 3 . 1 . . 1 . 6 2 . 14 1 13 6 5 . 2 Failed 58 | . . 1 . . . . . 3 6 4 . 4 . 10 11 15 . 4 Catastrophic 8 | . . 1 . . . . . . 2 1 . . . 1 1 1 . 1 Database Lockouts . | . . . . . . . . . . . . . . . . . . . Manual 55 | . 1 3 . 1 . . . . 6 5 . 10 . 8 2 14 . 5 Terminals 88 | . 1 4 . . . . . 3 12 5 . 11 1 12 17 17 . 5 Fabricators 5 | . . . . . . . . . . 1 . 1 . 3 . . . . Repair Stations 5 | . . . . . . . . . . . . 2 . . . 3 . . Recycling Units . | . . . . . . . . . . . . . . . . . . . Scanalyzers 3 | . . . . . . . . . . . . . . 3 . . . . Garrison Access 11 | . . . . . . . 1 . . . . 4 . 5 . . . 1 Terminal Hacks 16 | . . 1 . 1 . . . . 3 . . 2 1 2 6 . . . Robot Analysis 1 | . . . . . . . . . 1 . . . . . . . . . Open Door 5 | . . . . . . . . . . . . . . . 5 . . . Level Access Points 1 | . . . . . . . . . . . . . . 1 . . . . Branch Access Points 2 | . . . . . . . . . 1 . . . . . 1 . . . Terminal Index 2 | . . . . . . . . . . . . 1 . 1 . . . . Zone Layout 3 | . . 1 . . . . . . 1 . . 1 . . . . . . Garrison Registry 1 | . . . . . . . . . . . . . 1 . . . . . Derelict Proto ID Bank 1 | . . . . 1 . . . . . . . . . . . . . . Fabricator Hacks 3 | . . . . . . . . . . 1 . 1 . 1 . . . . Network Status 3 | . . . . . . . . . . 1 . 1 . 1 . . . . Repair Station Hacks 4 | . . . . . . . . . . . . 2 . . . 2 . . Scan Component 2 | . . . . . . . . . . . . 1 . . . 1 . . Repair 2 | . . . . . . . . . . . . 1 . . . 1 . . Recycling Unit Hacks . | . . . . . . . . . . . . . . . . . . . Scanalyzer 2 | . . . . . . . . . . . . . . 2 . . . . Insert Component 2 | . . . . . . . . . . . . . . 2 . . . . Garrison Access Hacks 11 | . . . . . . . 1 . . . . 4 . 5 . . . 1 Unlock Access 2 | . . . . . . . 1 . . . . 1 . . . . . . Seal Access 5 | . . . . . . . . . . . . 1 . 3 . . . 1 Coupler Status 4 | . . . . . . . . . . . . 2 . 2 . . . . Unauthorized Hacks 19 | . 1 2 . . . . . . 3 1 . 5 . 3 . 3 . 1 Terminals 19 | . 1 2 . . . . . . 3 1 . 5 . 3 . 3 . 1 Assimilate 2 | . . . . . . . . . . . . 1 . 1 . . . . Botnet 14 | . . 1 . . . . . . 2 1 . 4 . 2 . 3 . 1 Operators 3 | . 1 1 . . . . . . 1 . . . . . . . . . Fabricators . | . . . . . . . . . . . . . . . . . . . Repair Stations . | . . . . . . . . . . . . . . . . . . . Recycling Units . | . . . . . . . . . . . . . . . . . . . Scanalyzers . | . . . . . . . . . . . . . . . . . . . Garrison Access . | . . . . . . . . . . . . . . . . . . . Data Cores Recovered 3 | . . . . . . . . . . 1 . 1 . 1 . . . . Used 3 | . . . . . . . . . . 1 . 1 . 1 . . . . Hacking Detections 39 | . . 1 . . . . 1 1 5 2 . 7 . 7 6 7 . 2 Full Trace Events 6 | . . 1 . . . . . . 1 1 . . . . 1 2 . . Feedback Events . | . . . . . . . . . . . . . . . . . . . Feedback Blocked . | . . . . . . . . . . . . . . . . . . . Robot Schematics Acquired . | . . . . . . . . . . . . . . . . . . . Robots Built . | . . . . . . . . . . . . . . . . . . . Authchips . | . . . . . . . . . . . . . . . . . . . Time . | . . . . . . . . . . . . . . . . . . . Total Robot Build Rating . | . . . . . . . . . . . . . . . . . . . Part Schematics Acquired . | . . . . . . . . . . . . . . . . . . . Parts Built . | . . . . . . . . . . . . . . . . . . . Authchips . | . . . . . . . . . . . . . . . . . . . Time . | . . . . . . . . . . . . . . . . . . . Total Part Build Rating . | . . . . . . . . . . . . . . . . . . . Parts Repaired 2 | . . . . . . . . . . . . 1 . . . 1 . . Time 96 | . . . . . . . . . . . . 16 . . . 80 . . Parts Recycled . | . . . . . . . . . . . . . . . . . . . Recycled Matter . | . . . . . . . . . . . . . . . . . . . Retrieved Matter . | . . . . . . . . . . . . . . . . . . . Retrieved Components . | . . . . . . . . . . . . . . . . . . . Parts Scanalyzed 1 | . . . . . . . . . . . . . . 1 . . . . Part Schematics Acquired . | . . . . . . . . . . . . . . . . . . . Parts Damaged . | . . . . . . . . . . . . . . . . . . . Bothacking | -11 -10 -9 -9 -9 -8 -8 -8 -8 -8 -6 -6 -6 -6 -6 -6 -5 -5 -5 ------------ Run | Yrd Mat Mat Min Exi Min Mat Sto Gar Rec Fac Was Fac Gar Fac Ext Fac Was Fac Used RIF Installer 3 | . . . . . . . . 2 . . . . 1 . . . . . Hotswap 1 | . . . . . . . . 1 . . . . . . . . . . Patrol Navigation 1 | . . . . . . . . . . . . . 1 . . . . . Robots Hacked 23 | . . . . . . . . . . . . 2 2 11 5 3 . . Non-combat 3 | . . . . . . . . . . . . . . 1 . 2 . . Combat 20 | . . . . . . . . . . . . 2 2 10 5 1 . . Robot Hacks Applied 24 | . . . . . . . . . . . . 2 2 11 6 3 . . parse_system 2 | . . . . . . . . . . . . . . . 2 . . . block_reporting 1 | . . . . . . . . . . . . . . . . 1 . . map_route 2 | . . . . . . . . . . . . . . 1 . 1 . . overload_power 1 | . . . . . . . . . . . . . . . 1 . . . amplify_resonance 2 | . . . . . . . . . . . . . 1 . . 1 . . disable_weapons 2 | . . . . . . . . . . . . . . 1 1 . . . streamctrl_high 1 | . . . . . . . . . . . . . 1 . . . . . formatsys_high 13 | . . . . . . . . . . . . 2 . 9 2 . . . Relay Couplers Released 27 | . . . . . . . . 10 . . . . 14 3 . . . . Machine Destruction 27 | . . . . . . . . 10 . . . . 14 3 . . . . Attached 12 | . . . . . . . . . . 2 . . 1 5 1 2 . 1 Fabnet Peak Effective % . | . . . . . . . . . . . . . . . . . . . Robots Rewired 19 | . . . . . . . . . . . . . 3 . 16 . . . Allies Hacked . | . . . . . . . . . . . . . . . . . . . Hacks Repelled . | . . . . . . . . . . . . . . . . . . . Allies | -11 -10 -9 -9 -9 -8 -8 -8 -8 -8 -6 -6 -6 -6 -6 -6 -5 -5 -5 -------- Run | Yrd Mat Mat Min Exi Min Mat Sto Gar Rec Fac Was Fac Gar Fac Ext Fac Was Fac Total Allies 46 | . . . 1 . . . . . . . . 3 6 10 25 . 1 . Largest Group 17 | . . . 1 . . . . . . . . 3 5 7 17 8 1 . Highest-Rated Group 493 | . . . 31 . . . . . . . . 74 151 208 493 267 31 . Highest-Rated Ally 80 | . . . 31 . . . . . . . . 32 80 80 46 46 31 . Total Orders 12 | . . . . . . . . . . . . . 5 2 5 . . . STAY 6 | . . . . . . . . . . . . . 2 1 3 . . . FOLLOW 4 | . . . . . . . . . . . . . 1 1 2 . . . GUARD 2 | . . . . . . . . . . . . . 2 . . . . . Ally Attacks 289 | . . . 4 . . . . . . . . . 36 42 181 23 3 . Total Damage 6564 | . . . 43 . . . . . . . . . 1043 1286 3824 305 63 . Kills 59 | . . . 1 . . . . . . . . . 10 12 34 2 . . Allies Corrupted 1 | . . . . . . . . . . . . . . 1 . . . . Allies Melted 1 | . . . . . . . . . . . . . . . . 1 . . Intel | -11 -10 -9 -9 -9 -8 -8 -8 -8 -8 -6 -6 -6 -6 -6 -6 -5 -5 -5 ------- Run | Yrd Mat Mat Min Exi Min Mat Sto Gar Rec Fac Was Fac Gar Fac Ext Fac Was Fac Robot Analysis Total 1 | . . . . . . . . . 1 . . . . . . . . . Derelict Logs Recovered 1 | . . . 1 . . . . . . . . . . . . . . . Drone Launches . | . . . . . . . . . . . . . . . . . . . Drone Recoveries . | . . . . . . . . . . . . . . . . . . . Exploration | -11 -10 -9 -9 -9 -8 -8 -8 -8 -8 -6 -6 -6 -6 -6 -6 -5 -5 -5 ------------- Run | Yrd Mat Mat Min Exi Min Mat Sto Gar Rec Fac Was Fac Gar Fac Ext Fac Was Fac Turns Passed 5786 | 26 393 331 63 89 5 41 40 486 126 83 38 786 645 691 1002 470 45 426 Spaces Moved 9516 | 46 423 552 168 228 15 54 65 745 365 203 109 1595 1079 1373 1105 853 85 453 Core 822 | 46 87 . . . . . . . . . . 11 . . . 140 85 453 Treads . | . . . . . . . . . . . . . . . . . . . Legs . | . . . . . . . . . . . . . . . . . . . Wheels . | . . . . . . . . . . . . . . . . . . . Hover . | . . . . . . . . . . . . . . . . . . . Flight 8694 | . 336 552 168 228 15 54 65 745 365 203 109 1584 1079 1373 1105 713 . . Fastest Speed 6 | 50 37 34 34 34 34 34 29 28 28 28 28 20 20 6 20 17 50 50 Average Speed 29 | 50 39 35 34 36 34 36 31 28 28 28 28 30 22 20 24 29 50 64 Slowest Speed 300 | 50 100 37 34 104 34 104 34 32 28 28 28 300 95 23 101 105 50 250 Overloaded Moves 21 | . . . . . . . . . . . . . . 12 . 9 . . Propulsion Burnouts . | . . . . . . . . . . . . . . . . . . . Robots Hopped 36 | . . . . . . . . . . . . 2 . 13 18 3 . . Cave-ins Triggered 1 | . . . . . . . . . . . . . . 1 . . . . Exploration Rate (%) 39 | 3 49 42 41 62 11 7 9 50 78 8 86 27 43 38 84 21 82 15 Regions Visited 18 Branch Regions 6 Pre-discovered Areas 1 | . . . 1 . . . . . . . . . . . . . . . Known Exits Taken 7 | . 1 1 1 . . . 1 . 1 . . 1 . . 1 . . . Unknown Exits Taken 5 | 1 . . . 1 1 1 . . . . . . . 1 . . . . Scrap Searched . | . . . . . . . . . . . . . . . . . . . Spaces Dug 103 | . 9 1 . . . . . 4 . 1 . 9 65 11 1 2 . . Terrain Destroyed 469 | . 19 33 . . . . . 67 . 1 . 9 171 11 42 116 . . Melee 27 | . . 1 . . . . . . . 1 . 9 2 11 1 2 . . Projectile 2 | . . . . . . . . . . . . . . . 2 . . . AOE 440 | . 19 32 . . . . . 67 . . . . 169 . 39 114 . . Terrain Rammed . | . . . . . . . . . . . . . . . . . . . Walls Destroyed . | . . . . . . . . . . . . . . . . . . . Machines Disabled . | . . . . . . . . . . . . . . . . . . . Actions | -11 -10 -9 -9 -9 -8 -8 -8 -8 -8 -6 -6 -6 -6 -6 -6 -5 -5 -5 --------- Run | Yrd Mat Mat Min Exi Min Mat Sto Gar Rec Fac Was Fac Gar Fac Ext Fac Was Fac Total 11900 | 47 551 644 172 234 14 64 77 930 388 227 115 1838 1438 1698 1753 1041 86 583 Wait 1460 | . 48 27 4 . . 3 . 44 . . 7 151 181 218 549 112 . 116 Move 9432 | 45 422 551 167 227 14 53 64 744 364 203 108 1590 1078 1349 1069 847 84 453 Hop 32 | . . . . . . . . . . . . 2 . 10 17 3 . . Pick Up 192 | . 8 3 . 1 . . 7 31 16 8 . 22 36 25 12 22 . 1 Fast Attach 65 | 2 8 9 . 1 . . 1 5 . 3 . 10 4 2 1 16 1 2 Attach 51 | . 1 4 . 1 . 1 . 5 . 2 . 4 6 5 10 8 . 4 Detach 35 | . 2 3 . 2 . 1 . 3 . 1 . 2 7 6 6 2 . . Swap 58 | . 5 6 1 . . 1 1 7 . 2 . 7 10 9 7 2 . . Drop 111 | . 6 14 . 2 . . 1 1 6 6 . 19 22 15 7 9 1 2 Fire 220 | . 51 12 . . . . . 37 . . . 6 24 19 56 10 . 5 Melee 137 | . . 15 . . . 5 3 17 2 2 . 25 15 35 11 7 . . Ram 1 | . . . . . . . . . . . . . . . . 1 . . Kick . | . . . . . . . . . . . . . . . . . . . Crush . | . . . . . . . . . . . . . . . . . . . Escape Stasis 98 | . . . . . . . . 36 . . . . 54 . 8 . . . Rewire . | . . . . . . . . . . . . . . . . . . . Trap 8 | . . . . . . . . . . . . . 1 5 . 2 . . Miscellaneous . | . . . . . . . . . . . . . . . . . . . Route ------- -11/Scrapyard -10/Materials (discovered 2 exits: *Mat / [*Min]) -9/Materials (discovered 2 exits: *Min x2) -9/Mines -9/Exiles (discovered 2 exits: [*Min x2]) -8/Mines -8/Materials -8/Storage -8/Garrison (discovered 2 exits: *Rec x2) -8/Recycling -6/Factory -6/Waste -6/Factory (discovered 3 exits: *Fac / [*Low] / Gar) -6/Garrison (discovered 3 exits: *Fac x3) -6/Factory (discovered 5 exits: Fac x4 / *Ext) -6/Extension (discovered 2 exits: *Fac / *Cet) -5/Factory -5/Waste -5/Factory History --------- Turn | Location | Event 4 | -11/Scrapyard | Discovered new exit (range 15) 27 | -11/Scrapyard | Entered Materials 155 | -10/Materials | Discovered new exit (range 16) 419 | -10/Materials | Discovered new exit (range 4) 419 | -10/Materials | Identified exit to Materials 420 | -10/Materials | Entered another Materials area 420 | -9/Materials | Evolved 2 slots: Propulsion x1, Utility x1 523 | -9/Materials | Build established: Scavenger-Mutant 570 | -9/Materials | Discovered new exit (range 15) 706 | -9/Materials | Discovered new exit (range 9) 751 | -9/Materials | Identified exit to Mines 751 | -9/Materials | Entered Mines 754 | -9/Mines | Received a Mining Laser from a helpful Derelict 791 | -9/Mines | Learned location of Zion (-7) 812 | -9/Mines | Deemed a non-threat by the Exiles lab entrance 812 | -9/Mines | Discovered new exit (range 5) 813 | -9/Mines | Identified exit to Exiles 814 | -9/Mines | Entered Exiles 819 | -9/Exiles | Discovered new exit (range 15) 823 | -9/Exiles | Met 8R-AWN 828 | -9/Exiles | Met EX-HEX 839 | -9/Exiles | Met EX-BIN 844 | -9/Exiles | Aligned with FarCom system 844 | -9/Exiles | Given EX-Vault access code 855 | -9/Exiles | Opened EX-Vault 861 | -9/Exiles | Found Army-in-a-Box 869 | -9/Exiles | Found Lightpack 2.0 877 | -9/Exiles | Warned to stay clear of 0b10 Research branches 887 | -9/Exiles | Met EX-DEC 900 | -9/Exiles | Discovered new exit (range 10) 903 | -9/Exiles | Left Exiles lab with Lightpack 2.0 903 | -9/Exiles | Entered Mines 906 | -8/Mines | Discovered new exit (range 7) 908 | -8/Mines | Entered Materials 908 | -8/Materials | Evolved 2 slots: Propulsion x1, Utility x1 918 | -8/Materials | Discovered new exit (range 11) 949 | -8/Materials | Entered Storage 954 | -8/Storage | Identified exit to Garrison 989 | -8/Storage | Entered Garrison 992 | -8/Garrison | Installed Relay Interface Framework 996 | -8/Garrison | Garrison Relay disabled 1031 | -8/Garrison | Triggered checkpoint 1193 | -8/Garrison | Triggered checkpoint 1249 | -8/Garrison | Build established: Hauler-Sprinter 1254 | -8/Garrison | Discovered new exit (range 11) 1387 | -8/Garrison | Triggered checkpoint 1407 | -8/Garrison | Garrison Relay disabled 1428 | -8/Garrison | Expanded RIF knowledge: Hotswap 1470 | -8/Garrison | Discovered new exit (range 12) 1475 | -8/Garrison | Identified exit to Recycling 1475 | -8/Garrison | Entered Recycling 1597 | -8/Recycling | Discovered new exit (range 10) 1601 | -8/Recycling | Identified exit to Factory 1601 | -8/Recycling | Entered Factory 1601 | -6/Factory | Evolved 4 slots: Propulsion x2, Utility x2 1684 | -6/Factory | Sucked down chute 1684 | -6/Factory | Entered Waste 1692 | -6/Waste | Spotted C-40 Crusher 1693 | -6/Waste | Spotted C-40 Crusher 1693 | -6/Waste | Spotted C-40 Crusher 1699 | -6/Waste | EMP discharged 1702 | -6/Waste | Spotted C-40 Crusher 1702 | -6/Waste | Spotted C-40 Crusher 1702 | -6/Waste | Spotted C-40 Crusher 1719 | -6/Waste | Discovered new exit (range 10) 1722 | -6/Waste | Entered Factory 1834 | -6/Factory | Lost 4 parts (1p3n) 1888 | -6/Factory | Discovered new exit (range 12) 2245 | -6/Factory | Discovered new exit (range 16) 2280 | -6/Factory | Repaired VTOL Module 2506 | -6/Factory | Identified exit to Garrison 2508 | -6/Factory | Entered Garrison 2508 | -6/Garrison | Accompanied by 3 allies 2552 | -6/Garrison | Triggered checkpoint 2586 | -6/Garrison | Discovered new exit (range 80) 2586 | -6/Garrison | Discovered new exit (range 75) 2586 | -6/Garrison | Discovered new exit (range 42) 2604 | -6/Garrison | Triggered checkpoint 2857 | -6/Garrison | Spotted B-75 Beast 2865 | -6/Garrison | Triggered checkpoint 2869 | -6/Garrison | Destroyed B-75 Beast 2872 | -6/Garrison | Triggered checkpoint 2915 | -6/Garrison | Destroyed 7 combat bots 2916 | -6/Garrison | Lost 5 allies 2938 | -6/Garrison | Triggered checkpoint 2947 | -6/Garrison | Garrison Relay disabled 2954 | -6/Garrison | Found embedded Infiltrators 2993 | -6/Garrison | Triggered checkpoint 3065 | -6/Garrison | Expanded RIF knowledge: Patrol Navigation 3072 | -6/Garrison | Garrison Relay disabled 3089 | -6/Garrison | Triggered checkpoint 3117 | -6/Garrison | Garrison Relay disabled 3153 | -6/Garrison | Entered Factory 3153 | -6/Factory | Accompanied by 2 allies 3249 | -6/Factory | Found Launcher Loader 3270 | -6/Factory | Build established: Bothacker-Sprinter 3649 | -6/Factory | Crushed by falling debris 3766 | -6/Factory | System corruption reached 10% 3806 | -6/Factory | Identified exit to Factory 3808 | -6/Factory | Discovered new exit (range 6) 3844 | -6/Factory | Entered Extension 3844 | -6/Extension | Accompanied by 7 allies 4039 | -6/Extension | Rescued a captive Derelict 4039 | -6/Extension | Rescued a captive Derelict 4210 | -6/Extension | Build established: Commander-Sprinter 4419 | -6/Extension | Spotted B-75 Beast 4437 | -6/Extension | Allies destroyed B-75 Beast 4442 | -6/Extension | Spotted B-75 Beast 4454 | -6/Extension | Destroyed B-75 Beast 4460 | -6/Extension | Lost 3 parts (2n1u) 4478 | -6/Extension | Lost 7 allies 4520 | -6/Extension | Identified exit to Cetus 4524 | -6/Extension | Rescued a captive Derelict 4528 | -6/Extension | Rescued a captive Derelict 4544 | -6/Extension | First assault squad dispatched 4566 | -6/Extension | Lost 5 allies 4642 | -6/Extension | Lost 3 allies 4697 | -6/Extension | Rescued a captive Derelict 4698 | -6/Extension | Lost 4 allies 4720 | -6/Extension | Rescued a captive Derelict 4721 | -6/Extension | Rescued a captive Derelict 4776 | -6/Extension | Rescued a captive Derelict 4784 | -6/Extension | Discovered exit to Factory (range 10) 4846 | -6/Extension | Entered Factory 4846 | -5/Factory | Accompanied by 8 allies 4846 | -5/Factory | Evolved 2 slots: Utility x2 4963 | -5/Factory | Repaired Cld. Cesium-ion Thruster 5165 | -5/Factory | Found Powered Armor 5190 | -5/Factory | Lost 5 allies 5233 | -5/Factory | Released all parts (11) 5259 | -5/Factory | Core integrity fell below 50% 5264 | -5/Factory | Lost 17 parts (1p1n9u5w) 5315 | -5/Factory | Spotted B-75 Beast 5316 | -5/Factory | Core integrity fell below 20% 5316 | -5/Factory | Sucked down chute 5316 | -5/Factory | Entered Waste 5317 | -5/Waste | Met a frightened Derelict 5328 | -5/Waste | Spotted C-40 Crusher 5331 | -5/Waste | EMP discharged 5331 | -5/Waste | System corruption reached 10% 5332 | -5/Waste | Spotted C-40 Crusher 5345 | -5/Waste | Spotted C-40 Crusher 5348 | -5/Waste | Spotted C-40 Crusher 5349 | -5/Waste | Spotted C-40 Crusher 5350 | -5/Waste | Spotted C-40 Crusher 5354 | -5/Waste | Crushed by Compactor (1 part destroyed, 1 dropped) 5356 | -5/Waste | Discovered new exit (range 11) 5361 | -5/Waste | Entered Factory 5504 | -5/Factory | Build established: Mutant 5787 | -5/Factory | Destroyed by P-70 Sage with Tesla Rifle Last Messages --------------- 05561_ Connecting with Garrison Access... >>Seal Access door sealed. 05566_ System corrupted: Component data lost. 05574_ ALERT: All DSF locations entering lockdown mode. 05583_ S-27 Virus destroyed. 05600_ System corrupted: Energy discharge (-40). 05606_ R-10 Processor collects Lgt. Nuclear Core. 05615_ System corrupted: Substantial component data lost. 05641_ System corrupted: Matter fused (-9). 05656_ System corrupted: Component data lost. 05674_ K-01 Serf collects debris. 05683_ K-01 Serf cleans the Neutrino Reactor. 05686_ ALERT: Rogue bot located, Programmers report to Factory Zone 1F. 05689_ K-01 Serf cleans the Neutrino Reactor. 05714_ System corrupted: Matter fused (-9). 05743_ System corrupted: Matter fused (-7). 05751_ K-01 Serf cleans the Subcomponent Replicator. 05759_ System corrupted: Matter fused (-9). 05784_ System corrupted: Heat flow error (+274). Map ----- +----------------------------------------------------+ | ?????????????????????????????????????????????????? | | ?????????????????????????????????????????????????? | | ?????????????????????????????????????????????????? | | ?????????????????????????????????????????????????? | | ?????????????????????????????????????????????????? | | ?????????????????????????????????????????????????? | | ?????????????????????????????????????????????????? | | ?????????????????????????????????????????????????? | | ?????????????????????????????????????????????????? | | ???##################????????????????????????????? | | ???# ! #???##########???????????????? | | ???# """ """ """ #???# #???????????????? | | ???# """ """ """ #???# #???????????????? | | ???# " """ """ """ #???# #???????????????? | | ???# "" #???# #???????????????? | | ???# G """ """ """ ##### #???????????????? | | ???# "" """ """ """ + + #???????????????? | | ???# " """ """ """ ##### #???????????????? | | ???# #???# #???????????????? | | ############+############ #???????????????? | | s % # #???????????????? | | ^ s # #???????????????? | | s """ """ ] #k #???????????????? | | s""" """ # #???????????????? | | """ """ p #???????????????? | | "" "" #@ #???????????????? | | "" "" # #???????????????? | | ########## # #???????????????? | | ?????????# ^""" """ p########## ??????????????? | | ??????####w """ """ ?????????????? | | ??????# """ """ = ?????????????? | | ??????# "" "" ?????????????? | | ??????# "" "" w ????????????? | | ??????# ????????????? | | ??????# ????????????? | | ??????# ????????????? | | ??????# ###+#???????????????????? | | ??????#### [ #???????????????????????? | | ?????????# ####### C###???????????????????????? | | ?????????# #?????# #?????????????????????????? | | ?????????# #?????# #?????????????????????????? | | ?????????# #?????# #?????????????????????????? | | ?????????#+#?????# #?????????????????????????? | | ???????? ????# #??###########????????????? | | ?????? ??# #? | #????????????? | | ????# """ """ # #? = #????????????? | | ????# """ """ # # #????????????? | | ????# """ """ # # #????????????? | | ????# / + #????????????? | | ????# """ """ # # #????????????? | +----------------------------------------------------+ Best States ------------- Heat Dissipation 53 Coolant Potential 50 Energy Generation 18 Energy Capacity 300 Matter Stores 300 Matter Capacity 300 Sight Range 16 Robot Scan Range 14 Terrain Scan Density 10 Jamming Range 14 Corruption Containment 8 Armor Coverage 150 Evasion (%) 76 Targeting Accuracy 8 Offensive Hacking 20 Relay Coupler Types 2 Relay Coupler Value 55 Authchip Count 10 Item Schematics ----------------- None Robot Schematics ------------------ None Fabricated ------------ Nothing Alien Tech Used ----------------- None Achievements -------------- Error 47 Packrat Quantum Hacking Challenges ------------ None Game ------ Seed RingDisposableBox Manual? 0 Play Time 01:59:35 Cumulative 89.9 hours Start 2025.03.14 @ 13:57:37 End 2025.03.14 @ 16:23:18 Sessions 1 Manual Loads 0 Difficulty Rogue Special Mode None Game No. 92 Rogue 92 Adventurer 0 Explorer 0 Win Type - Total 1 Types 1/0/0/0/0/0/0/0/0 Lore% 39 Gallery% 50 Achievement% 45 Wizard Run 0 Options --------- Layout 0 ASCII 0 Keyboard 1 Movement Numpad Keybinds 0 Fullscreen 1 Font 18/SmallcapsGlow Map View 76x50 Zoom Use 0% Tactical HUD 1 Map Filters NONE Filters NONE Steam 1 RUN: 654f6c53-6497-4e6f-8959-91c0dae472e6